fUST/lending_fUST_20250530
["ID","MTS","AMOUNT","RATE_DAILY","PERIOD"]
[363031701,1748556640950,-430.0,0.00019726,2]
[363031703,1748556640959,-430.0,0.00019726,2]
[363031705,1748556640968,-430.0,0.00019726,2]
[363031707,1748556640977,-2100.01,0.00019726,2]
[363031709,1748556640986,-6991.29,0.00019726,2]
[363031711,1748556640996,-430.0,0.00019726,2]
[363031713,1748556641005,-430.0,0.00019726,2]
[363031715,1748556641015,-510.2,0.00019726,2]
[363031717,1748556641024,-430.0,0.00019726,2]
[363031719,1748556641033,-430.0,0.00019726,2]
[363031721,1748556641042,-2407.88,0.00019726,2]
[363031723,1748556641051,-442.75,0.00019726,2]
[363031725,1748556641061,-430.0,0.00019726,2]
[363031727,1748556641070,-528.92,0.00019726,2]
[363031728,1748556641079,-752.26,0.00019726,2]
[363031731,1748556641088,-430.0,0.00019726,2]
[363031732,1748556641099,-4103.81,0.00019726,2]
[363031734,1748556641108,-657.44,0.00019726,2]
[363031736,1748556641117,-157.4,0.00019726,2]
[363031738,1748556641127,-430.0,0.00019726,2]
[363031740,1748556641137,-1941.04,0.00019726,2]
[363031742,1748556641150,-430.0,0.00019726,2]
[363031744,1748556641159,-430.0,0.00019726,2]
[363031746,1748556641169,-430.0,0.00019726,2]
[363031748,1748556641178,-430.0,0.00019726,2]
[363031750,1748556641189,-430.0,0.00019726,2]
[363031752,1748556641198,-672.67,0.00019726,2]
[363031754,1748556641207,-430.0,0.00019726,2]
[363031756,1748556641217,-430.0,0.00019726,2]
[363031758,1748556641229,-430.0,0.00019726,2]
[363031760,1748556641238,-430.0,0.00019726,2]
[363031762,1748556641247,-585.92,0.00019726,2]
[363031764,1748556641256,-3697.22,0.00019726,2]
[363031766,1748556641266,-4101.92,0.00019726,2]
[363031768,1748556641275,-995.18,0.00019726,2]
[363031770,1748556641284,-3261.31,0.00019726,2]
[363031772,1748556641293,-1208.59,0.00019726,2]
[363031774,1748556641303,-997.46,0.00019726,2]
[363031776,1748556641312,-446.60177318,0.00019726,2]
[363031809,1748556641617,-371.81984033,0.00019178,2]
[363031811,1748556641626,-421.55637079,0.00019178,2]
[363031813,1748556641636,-513.24822682,0.00019726,2]
[363031815,1748556641645,-683.43,0.00019726,2]
[363031817,1748556641654,-430.0,0.00019726,2]
[363031819,1748556641664,-430.0,0.00019726,2]
[363031821,1748556641673,-430.0,0.00019726,2]
[363031823,1748556641682,-3343.37751356,0.000199,2]
[363031825,1748556641693,-420.0,0.00019976,2]
[363031827,1748556641703,-430.0,0.0002,2]
[363031829,1748556641712,-430.0,0.0002,2]
[363031831,1748556641721,-430.0,0.0002,2]
[363031833,1748556641731,-430.0,0.0002,2]
[363031835,1748556641740,-430.0,0.0002,2]
[363031837,1748556641749,-404.02,0.0002,2]
[363031839,1748556641759,-360.0125495,0.0002,2]
[363031841,1748556641771,-89.9874505,0.0002,2]
[363031843,1748556641781,-430.0,0.0002,2]
[363031845,1748556641790,-430.0,0.0002,2]
[363031847,1748556641799,-430.0,0.0002,2]
[363031849,1748556641809,-430.0,0.0002,2]
[363031851,1748556641818,-430.0,0.0002,2]
[363031853,1748556641827,-430.0,0.0002,2]
[363031855,1748556641837,-262.83,0.0002,2]
[363031857,1748556641846,-430.0,0.0002,2]
[363031859,1748556641855,-430.0,0.0002,2]
[363031861,1748556641864,-1705.92,0.0002,2]
[363031863,1748556641874,-430.0,0.0002,2]
[363031865,1748556641884,-430.0,0.0002,2]
[363031867,1748556641894,-901.59,0.0002,2]
[363031869,1748556641903,-430.0,0.0002,2]
[363031871,1748556641912,-430.0,0.0002,2]
[363031873,1748556641922,-551.92,0.0002,2]
[363031875,1748556641931,-430.0,0.0002,2]
[363031877,1748556641940,-1174.86,0.0002,2]
[363031879,1748556641949,-430.0,0.0002,2]
[363031881,1748556641958,-430.0,0.0002,2]
[363031883,1748556641968,-574.61,0.0002,2]
[363031885,1748556641978,-167.75668702,0.0002,2]
[363031887,1748556641987,-430.0,0.0002,2]
[363031889,1748556641997,-430.0,0.0002,2]
[363031891,1748556642006,-430.0,0.0002,2]
[363031893,1748556642015,-444.16,0.0002,2]
[363031895,1748556642024,-430.0,0.0002,2]
[363031897,1748556642033,-2842.0,0.0002,2]
[363031899,1748556642042,-430.0,0.0002,2]
[363031901,1748556642051,-430.0,0.0002,2]
[363031902,1748556642061,-430.0,0.0002,2]
[363031905,1748556642070,-1091.61,0.0002,2]
[363031906,1748556642079,-430.0,0.0002,2]
[363031908,1748556642088,-530.0,0.0002,2]
[363031910,1748556642097,-474.79,0.0002,2]
[363031913,1748556642107,-430.0,0.0002,2]
[363031915,1748556642116,-430.0,0.0002,2]
[363031917,1748556642126,-964.44,0.0002,2]
[363031919,1748556642136,-430.0,0.0002,2]
[363031921,1748556642147,-430.0,0.0002,2]
[363031923,1748556642157,-561.09,0.0002,2]
[363031924,1748556642167,-2447.72,0.0002,2]
[363031926,1748556642176,-430.0,0.0002,2]
[363031929,1748556642190,-569.2628634,0.0002,2]
[363031931,1748556642200,-430.0,0.0002,2]
[363031933,1748556642209,-430.0,0.0002,2]
[363031935,1748556642218,-430.0,0.0002,2]
[363031937,1748556642230,-430.0,0.0002,2]
[363031939,1748556642239,-633.51,0.0002,2]
[363031941,1748556642249,-430.0,0.0002,2]
[363031943,1748556642259,-260.0,0.0002,2]
[363031945,1748556642270,-242.49134895,0.0002,2]
[363031947,1748556642279,-801.7,0.0002,2]
[363031949,1748556642289,-430.0,0.0002,2]
[363031951,1748556642299,-797.63,0.0002,2]
[363031953,1748556642308,-1112.73,0.0002,2]
[363031955,1748556642318,-430.0,0.0002,2]
[363031957,1748556642327,-6436.32,0.0002,2]
[363031959,1748556642337,-2898.16,0.0002,2]
[363031962,1748556642346,-530.36,0.0002,2]
[363031965,1748556642356,-430.0,0.0002,2]
[363031967,1748556642366,-430.0,0.0002,2]
[363031970,1748556642375,-512.23,0.0002,2]
[363031973,1748556642387,-1195.58,0.0002,2]
[363031975,1748556642396,-960.67,0.0002,2]
[363031977,1748556642405,-852.2,0.0002,2]
[363031979,1748556642414,-430.0,0.0002,2]
[363031981,1748556642424,-5639.66,0.0002,2]
[363031983,1748556642433,-430.0,0.0002,2]
[363031985,1748556642442,-1009.95,0.0002,2]
[363031987,1748556642452,-632.99,0.0002,2]
[363031989,1748556642461,-8117.07,0.0002,2]
[363031991,1748556642471,-454.17,0.0002,2]
[363031993,1748556642480,-452.41,0.0002,2]
[363031995,1748556642489,-430.0,0.0002,2]
[363031997,1748556642499,-430.0,0.0002,2]
[363031999,1748556642509,-2481.17,0.0002,2]
[363032001,1748556642518,-795.07,0.0002,2]
[363032003,1748556642527,-430.0,0.0002,2]
[363032005,1748556642537,-490.0,0.0002,2]
[363032007,1748556642546,-4582.76,0.0002,2]
[363032009,1748556642555,-430.0,0.0002,2]
[363032011,1748556642565,-1104.94,0.0002,2]
[363032013,1748556642574,-430.0,0.0002,2]
[363032015,1748556642583,-430.0,0.0002,2]
[363032017,1748556642593,-481.16774827,0.0002,2]
[363032019,1748556642602,-430.0,0.0002,2]
[363032021,1748556642611,-1081.58,0.0002,2]
[363032023,1748556642620,-2052.87,0.0002,2]
[363032025,1748556642630,-2823.79,0.0002,2]
[363032027,1748556642639,-430.0,0.0002,2]
[363032029,1748556642648,-3349.55,0.0002,2]
[363032031,1748556642657,-533.09,0.0002,2]
[363032033,1748556642667,-434.10630352,0.0002,2]
[363032035,1748556642676,-430.0,0.0002,2]
[363032037,1748556642685,-430.0,0.0002,2]
[363032039,1748556642694,-430.0,0.0002,2]
[363032041,1748556642703,-430.0,0.0002,2]
[363032043,1748556642713,-293.20464564,0.0002,2]
[363032045,1748556642722,-430.0,0.0002,2]
[363032047,1748556642732,-2060.41,0.0002,2]
[363032049,1748556642741,-10558.32,0.0002,2]
[363032051,1748556642750,-430.0,0.0002,2]
[363032052,1748556642763,-1145.35,0.0002,2]
[363032055,1748556642772,-2074.11,0.0002,2]
[363032057,1748556642782,-5225.97,0.0002,2]
[363032058,1748556642792,-500.0,0.0002,2]
[363032060,1748556642801,-2140.11,0.0002,2]
[363032062,1748556642811,-649.73,0.0002,2]
[363032064,1748556642820,-430.0,0.0002,2]
[363032066,1748556642829,-430.0,0.0002,2]
[363032068,1748556642839,-430.0,0.0002,2]
[363032070,1748556642849,-2100.01,0.0002,2]
[363032072,1748556642858,-6991.29,0.0002,2]
[363032084,1748556642961,-430.0,0.0002,2]
[363032086,1748556642971,-430.0,0.0002,2]
[363032088,1748556642981,-510.2,0.0002,2]
[363032089,1748556642990,-430.0,0.0002,2]
[363032090,1748556642999,-430.0,0.0002,2]
[363032091,1748556643010,-2407.88,0.0002,2]
[363032092,1748556643019,-442.75,0.0002,2]
[363032093,1748556643028,-430.0,0.0002,2]
[363032094,1748556643037,-752.26,0.0002,2]
[363032095,1748556643046,-528.92,0.0002,2]
[363032096,1748556643056,-430.0,0.0002,2]
[363032097,1748556643065,-4103.81,0.0002,2]
[363032098,1748556643075,-657.44,0.0002,2]
[363032099,1748556643084,-430.0,0.0002,2]
[363032100,1748556643094,-1941.04,0.0002,2]
[363032101,1748556643103,-430.0,0.0002,2]
[363032102,1748556643112,-430.0,0.0002,2]
[363032103,1748556643121,-430.0,0.0002,2]
[363032104,1748556643130,-430.0,0.0002,2]
[363032105,1748556643139,-542.4125288,0.0002,2]
[363032106,1748556643152,-672.67,0.0002,2]
[363032107,1748556643162,-430.0,0.0002,2]
[363032108,1748556643171,-430.0,0.0002,2]
[363032109,1748556643180,-430.0,0.0002,2]
[363032110,1748556643190,-430.0,0.0002,2]
[363032111,1748556643199,-585.92,0.0002,2]
[363032112,1748556643208,-3697.22,0.0002,2]
[363032113,1748556643217,-4101.92,0.0002,2]
[363032114,1748556643227,-995.18,0.0002,2]
[363032115,1748556643236,-3261.31,0.0002,2]
[363032116,1748556643245,-1208.59,0.0002,2]
[363032118,1748556643257,-997.46,0.0002,2]
[363032120,1748556643266,-959.85,0.0002,2]
[363032122,1748556643275,-683.43,0.0002,2]
[363032124,1748556643285,-430.0,0.0002,2]
[363032126,1748556643294,-430.0,0.0002,2]
[363032128,1748556643303,-600.0,0.00020021,2]
[363032130,1748556643312,-160.0,0.00020051,2]
[363032132,1748556643322,-160.0,0.00020051,2]
[363032134,1748556643331,-842.5625,0.00020051,2]
[363032136,1748556643340,-160.0,0.00020056,2]
[363032138,1748556643349,-212.70147903,0.00020056,2]
[363032140,1748556643359,-160.0,0.00020056,2]
[363032142,1748556643368,-12660.97845086,0.00020056,2]
[363032144,1748556643377,-423.31762986,0.00020056,2]
[363032146,1748556643387,-160.0,0.00020056,2]
[363032148,1748556643396,-160.0,0.00020056,2]
[363032150,1748556643405,-160.0,0.00020056,2]
[363032152,1748556643415,-153.0,0.00020067,2]
[363032154,1748556643424,-153.0,0.00020067,2]
[363032156,1748556643433,-153.0,0.00020067,2]
[363032158,1748556643442,-153.0,0.00020067,2]
[363032160,1748556643452,-168.9469918,0.00020067,2]
[363032162,1748556643461,-3343.37751352,0.00020072,2]
[363032164,1748556643470,-501.38280864,0.00020169,2]
[363032166,1748556643479,-3343.37751352,0.00020245,2]
[363032168,1748556643488,-430.0,0.00020273,2]
[363032170,1748556643498,-430.0,0.00020273,2]
[363032172,1748556643508,-430.0,0.00020273,2]
[363032174,1748556643518,-430.0,0.00020273,2]
[363032176,1748556643527,-430.0,0.00020273,2]
[363032178,1748556643536,-430.0,0.00020273,2]
[363032180,1748556643546,-430.0,0.00020273,2]
[363032182,1748556643555,-430.0,0.00020273,2]
[363032184,1748556643564,-430.0,0.00020273,2]
[363032186,1748556643574,-430.0,0.00020273,2]
[363032188,1748556643583,-430.0,0.00020273,2]
[363032190,1748556643593,-430.0,0.00020273,2]
[363032192,1748556643602,-430.0,0.00020273,2]
[363032194,1748556643611,-1705.92,0.00020273,2]
[363032196,1748556643620,-430.0,0.00020273,2]
[363032198,1748556643629,-544.34,0.00020273,2]
[363032200,1748556643638,-901.59,0.00020273,2]
[363032202,1748556643648,-430.0,0.00020273,2]
[363032204,1748556643657,-430.0,0.00020273,2]
[363032205,1748556643666,-551.92,0.00020273,2]
[363032207,1748556643676,-1174.86,0.00020273,2]
[363032209,1748556643685,-430.0,0.00020273,2]
[363032211,1748556643694,-430.0,0.00020273,2]
[363032214,1748556643706,-574.61,0.00020273,2]
[363032215,1748556643715,-430.0,0.00020273,2]
[363032217,1748556643725,-430.0,0.00020273,2]
[363032219,1748556643735,-430.0,0.00020273,2]
[363032222,1748556643744,-444.16,0.00020273,2]
[363032224,1748556643755,-570.00217005,0.00020273,2]
[363032225,1748556643765,-430.0,0.00020273,2]
[363032227,1748556643775,-430.0,0.00020273,2]
[363032229,1748556643784,-430.0,0.00020273,2]
[363032231,1748556643794,-1091.61,0.00020273,2]
[363032233,1748556643804,-430.0,0.00020273,2]
[363032235,1748556643813,-430.0,0.00020273,2]
[363032237,1748556643823,-530.0,0.00020273,2]
[363032239,1748556643832,-964.44,0.00020273,2]
[363032241,1748556643841,-430.0,0.00020273,2]
[363032243,1748556643851,-430.0,0.00020273,2]
[363032245,1748556643860,-561.09,0.00020273,2]
[363032247,1748556643870,-2447.72,0.00020273,2]
[363032249,1748556643879,-570.0,0.00020273,2]
[363032251,1748556643889,-430.0,0.00020273,2]
[363032253,1748556643898,-430.0,0.00020273,2]
[363032255,1748556643908,-430.0,0.00020273,2]
[363032257,1748556643918,-430.0,0.00020273,2]
[363032259,1748556643927,-633.51,0.00020273,2]
[363032261,1748556643937,-430.0,0.00020273,2]
[363032263,1748556643948,-801.7,0.00020273,2]
[363032265,1748556643957,-430.0,0.00020273,2]
[363032267,1748556643966,-797.63,0.00020273,2]
[363032269,1748556643976,-1112.73,0.00020273,2]
[363032271,1748556643985,-430.0,0.00020273,2]
[363032273,1748556643994,-6436.32,0.00020273,2]
[363032275,1748556644005,-2898.16,0.00020273,2]
[363032277,1748556644014,-430.0,0.00020273,2]
[363032279,1748556644024,-430.0,0.00020273,2]
[363032281,1748556644033,-512.23,0.00020273,2]
[363032283,1748556644043,-1195.58,0.00020273,2]
[363032285,1748556644054,-960.67,0.00020273,2]
[363032287,1748556644063,-852.2,0.00020273,2]
[363032289,1748556644073,-430.0,0.00020273,2]
[363032291,1748556644082,-5639.66,0.00020273,2]
[363032293,1748556644091,-430.0,0.00020273,2]
[363032295,1748556644101,-1009.95,0.00020273,2]
[363032297,1748556644111,-632.99,0.00020273,2]
[363032299,1748556644120,-8117.07,0.00020273,2]
[363032301,1748556644130,-454.17,0.00020273,2]
[363032303,1748556644139,-452.41,0.00020273,2]
[363032305,1748556644153,-430.0,0.00020273,2]
[363032307,1748556644162,-430.0,0.00020273,2]
[363032309,1748556644172,-2481.17,0.00020273,2]
[363032311,1748556644182,-795.07,0.00020273,2]
[363032313,1748556644191,-430.0,0.00020273,2]
[363032315,1748556644201,-4582.76,0.00020273,2]
[363032317,1748556644211,-430.0,0.00020273,2]
[363032319,1748556644220,-1104.94,0.00020273,2]
[363032321,1748556644230,-430.0,0.00020273,2]
[363032323,1748556644239,-430.0,0.00020273,2]
[363032325,1748556644249,-430.0,0.00020273,2]
[363032327,1748556644259,-1081.58,0.00020273,2]
[363032329,1748556644268,-2052.87,0.00020273,2]
[363032331,1748556644277,-2823.79,0.00020273,2]
[363032333,1748556644287,-3349.55,0.00020273,2]
[363032335,1748556644296,-533.09,0.00020273,2]
[363032337,1748556644306,-430.0,0.00020273,2]
[363032339,1748556644315,-430.0,0.00020273,2]
[363032341,1748556644324,-430.0,0.00020273,2]
[363032343,1748556644334,-430.0,0.00020273,2]
[363032354,1748556644427,-430.0,0.00020273,2]
[363032356,1748556644437,-2060.41,0.00020273,2]
[363032358,1748556644446,-10558.32,0.00020273,2]
[363032360,1748556644455,-1145.35,0.00020273,2]
[363032362,1748556644465,-2074.11,0.00020273,2]
[363032364,1748556644473,-5225.97,0.00020273,2]
[363032366,1748556644483,-500.0,0.00020273,2]
[363032367,1748556644492,-2140.11,0.00020273,2]
[363032369,1748556644502,-649.73,0.00020273,2]
[363032372,1748556644515,-430.0,0.00020273,2]
[363032374,1748556644525,-510.0,0.00020273,2]
[363032376,1748556644534,-430.0,0.00020273,2]
[363032378,1748556644544,-2100.01,0.00020273,2]
[363032380,1748556644553,-6991.29,0.00020273,2]
[363032382,1748556644562,-430.0,0.00020273,2]
[363032384,1748556644571,-430.0,0.00020273,2]
[363032386,1748556644581,-510.2,0.00020273,2]
[363032388,1748556644590,-430.0,0.00020273,2]
[363032390,1748556644599,-430.0,0.00020273,2]
[363032391,1748556644608,-2407.88,0.00020273,2]
[363032394,1748556644617,-442.75,0.00020273,2]
[363032396,1748556644626,-430.0,0.00020273,2]
[363032398,1748556644636,-752.26,0.00020273,2]
[363032400,1748556644645,-528.92,0.00020273,2]
[363032402,1748556644655,-430.0,0.00020273,2]
[363032404,1748556644664,-4103.81,0.00020273,2]
[363032405,1748556644674,-657.44,0.00020273,2]
[363032407,1748556644683,-430.0,0.00020273,2]
[363032409,1748556644692,-1941.04,0.00020273,2]
[363032411,1748556644702,-430.0,0.00020273,2]
[363032413,1748556644711,-430.0,0.00020273,2]
[363032416,1748556644722,-430.0,0.00020273,2]
[363032417,1748556644731,-430.0,0.00020273,2]
[363032419,1748556644740,-672.67,0.00020273,2]
[363032421,1748556644750,-507.49,0.00020273,2]
[363032424,1748556644760,-430.0,0.00020273,2]
[363032425,1748556644770,-234.70124101,0.00020273,2]
[363032427,1748556644779,-430.0,0.00020273,2]
[363032429,1748556644788,-585.92,0.00020273,2]
[363032431,1748556644799,-3697.22,0.00020273,2]
[363032433,1748556644811,-4101.92,0.00020273,2]
[363032435,1748556644822,-995.18,0.00020273,2]
[363032437,1748556644831,-3261.31,0.00020273,2]
[363032439,1748556644841,-1208.59,0.00020273,2]
[363032441,1748556644850,-997.46,0.00020273,2]
[363032443,1748556644859,-959.85,0.00020273,2]
[363032445,1748556644869,-683.43,0.00020273,2]
[363032447,1748556644878,-430.0,0.00020273,2]
[363032449,1748556644888,-430.0,0.00020273,2]
[363032451,1748556644898,-151.0,0.000203,2]
[363032453,1748556644907,-151.0,0.000203,2]
[363032455,1748556644916,-151.0,0.000203,2]
[363032457,1748556644926,-151.0,0.000203,2]
[363032459,1748556644936,-202.110199,0.000203,2]
[363032461,1748556644945,-207.4,0.00020338,2]
[363032463,1748556644955,-300.0,0.00020338,2]
[363032465,1748556644964,-300.0,0.00020338,2]
[363032467,1748556644973,-300.0,0.00020338,2]
[363032469,1748556644983,-300.0,0.00020338,2]
[363032471,1748556644992,-300.0,0.00020338,2]
[363032473,1748556645001,-300.0,0.00020338,2]
[363032475,1748556645010,-300.0,0.00020338,2]
[363032477,1748556645020,-300.0,0.00020338,2]
[363032479,1748556645030,-300.0,0.00020338,2]
[363032481,1748556645039,-5000.0,0.00020338,2]
[363032483,1748556645049,-300.0,0.00020338,2]
[363032485,1748556645058,-300.0,0.00020338,2]
[363032487,1748556645068,-300.0,0.00020338,2]
[363032489,1748556645077,-300.0,0.00020338,2]
[363032491,1748556645087,-300.0,0.00020338,2]
[363032493,1748556645096,-300.0,0.00020338,2]
[363032495,1748556645105,-176.70832624,0.00020352,2]
[363032497,1748556645114,-748.359,0.00020352,2]
[363032499,1748556645124,-151.0,0.000204,3]
[363032501,1748556645133,-3343.37751352,0.00020417,3]
[363032503,1748556645143,-501.38280865,0.00020474,2]
[363032505,1748556645156,-532.54,0.00020538,3]
[363032507,1748556645165,-991.783639,0.00020547,2]
[363032509,1748556645175,-991.783639,0.00020547,2]
[363032511,1748556645184,-151.0,0.00020547,2]
[363032513,1748556645194,-151.0,0.00020547,2]
[363032515,1748556645203,-151.0,0.00020547,2]
[363032517,1748556645212,-384.989524,0.00020547,2]
[363032519,1748556645221,-384.989524,0.00020547,2]
[363032521,1748556645232,-1436.859293,0.00020547,2]
[363032523,1748556645241,-1436.859293,0.00020547,2]
[363032525,1748556645250,-753.372016,0.00020547,2]
[363032527,1748556645261,-753.372016,0.00020547,2]
[363032529,1748556645270,-235.841609,0.00020547,2]
[363032531,1748556645279,-235.841609,0.00020547,2]
[363032533,1748556645288,-1399.321222,0.00020547,2]
[363032535,1748556645297,-1399.321222,0.00020547,2]
[363032537,1748556645306,-430.0,0.00020547,2]
[363032539,1748556645315,-430.0,0.00020547,2]
[363032541,1748556645324,-430.0,0.00020547,2]
[363032543,1748556645333,-430.0,0.00020547,2]
[363032545,1748556645343,-430.0,0.00020547,2]
[363032547,1748556645352,-430.0,0.00020547,2]
[363032549,1748556645361,-430.0,0.00020547,2]
[363032551,1748556645370,-430.0,0.00020547,2]
[363032553,1748556645379,-197.45,0.00020547,2]
[363032555,1748556645388,-430.0,0.00020547,2]
[363032557,1748556645397,-377.33367671,0.00020547,2]
[363032559,1748556645406,-430.0,0.00020547,2]
[363032561,1748556645415,-1705.92,0.00020547,2]
[363032563,1748556645424,-497.34028706,0.00020547,2]
[363032565,1748556645434,-901.59,0.00020547,2]
[363032567,1748556645443,-570.0,0.00020547,2]
[363032569,1748556645452,-570.0,0.00020547,2]
[363032571,1748556645461,-551.92,0.00020547,2]
[363032573,1748556645470,-1174.86,0.00020547,2]
[363032575,1748556645479,-501.51242212,0.00020547,2]
[363032576,1748556645489,-430.0,0.00020547,2]
[363032579,1748556645499,-574.61,0.00020547,2]
[363032580,1748556645510,-430.0,0.00020547,2]
[363032582,1748556645520,-430.0,0.00020547,2]
[363032584,1748556645529,-430.0,0.00020547,2]
[363032586,1748556645538,-444.16,0.00020547,2]
[363032588,1748556645547,-430.0,0.00020547,2]
[363032590,1748556645556,-430.0,0.00020547,2]
[363032592,1748556645566,-430.0,0.00020547,2]
[363032593,1748556645575,-1091.61,0.00020547,2]
[363032594,1748556645585,-430.0,0.00020547,2]
[363032595,1748556645595,-430.0,0.00020547,2]
[363032596,1748556645612,-286.065708,0.00020547,2]
[363032597,1748556645622,-964.44,0.00020547,2]
[363032598,1748556645632,-430.0,0.00020547,2]
[363032599,1748556645642,-430.0,0.00020547,2]
[363032601,1748556645651,-151.0,0.00020547,2]
[363032603,1748556645661,-561.09,0.00020547,2]
[363032605,1748556645670,-2447.72,0.00020547,2]
[363032607,1748556645679,-430.0,0.00020547,2]
[363032608,1748556645688,-430.0,0.00020547,2]
[363032611,1748556645698,-430.0,0.00020547,2]
[363032620,1748556645787,-430.0,0.00020547,2]
[363032622,1748556645797,-633.51,0.00020547,2]
[363032624,1748556645807,-430.0,0.00020547,2]
[363032626,1748556645816,-801.7,0.00020547,2]
[363032628,1748556645826,-430.0,0.00020547,2]
[363032630,1748556645835,-797.63,0.00020547,2]
[363032632,1748556645845,-1112.73,0.00020547,2]
[363032634,1748556645855,-430.0,0.00020547,2]
[363032636,1748556645865,-6436.32,0.00020547,2]
[363032638,1748556645875,-2898.16,0.00020547,2]
[363032640,1748556645884,-430.0,0.00020547,2]
[363032642,1748556645894,-430.0,0.00020547,2]
[363032644,1748556645904,-512.23,0.00020547,2]
[363032646,1748556645913,-1195.58,0.00020547,2]
[363032648,1748556645923,-960.67,0.00020547,2]
[363032650,1748556645932,-852.2,0.00020547,2]
[363032652,1748556645942,-430.0,0.00020547,2]
[363032654,1748556645953,-5639.66,0.00020547,2]
[363032656,1748556645962,-430.0,0.00020547,2]
[363032658,1748556645972,-1009.95,0.00020547,2]
[363032660,1748556645981,-632.99,0.00020547,2]
[363032662,1748556645990,-8117.07,0.00020547,2]
[363032664,1748556645999,-454.17,0.00020547,2]
[363032666,1748556646008,-452.41,0.00020547,2]
[363032668,1748556646018,-399.68876216,0.00020547,2]
[363032670,1748556646027,-430.0,0.00020547,2]
[363032672,1748556646037,-2481.17,0.00020547,2]
[363032674,1748556646046,-795.07,0.00020547,2]
[363032676,1748556646056,-430.0,0.00020547,2]
[363032678,1748556646065,-4582.76,0.00020547,2]
[363032680,1748556646074,-430.0,0.00020547,2]
[363032682,1748556646084,-1104.94,0.00020547,2]
[363032684,1748556646093,-151.0,0.00020547,2]
[363032686,1748556646102,-393.151708,0.00020547,2]
[363032688,1748556646111,-311.81253736,0.00020547,2]
[363032690,1748556646121,-430.0,0.00020547,2]
[363032692,1748556646130,-393.151708,0.00020547,2]
[363032694,1748556646139,-430.0,0.00020547,2]
[363032696,1748556646154,-1081.58,0.00020547,2]
[363032698,1748556646163,-2052.87,0.00020547,2]
[363032700,1748556646173,-2823.79,0.00020547,2]
[363032702,1748556646183,-3349.55,0.00020547,2]
[363032704,1748556646193,-533.09,0.00020547,2]
[363032706,1748556646203,-430.0,0.00020547,2]
[363032708,1748556646213,-430.0,0.00020547,2]
[363032711,1748556646223,-430.0,0.00020547,2]
[363032713,1748556646233,-430.0,0.00020547,2]
[363032715,1748556646242,-510.0,0.00020547,2]
[363032717,1748556646251,-2060.41,0.00020547,2]
[363032718,1748556646261,-10558.32,0.00020547,2]
[363032720,1748556646270,-1145.35,0.00020547,2]